fUST/lending_fUST_20240920
["ID","MTS","AMOUNT","RATE_DAILY","PERIOD"]
[338624849,1726807851850,-500.0,0.00016712,2]
[338624850,1726807851859,-500.0,0.00016712,2]
[338624851,1726807851868,-266.03,0.00016712,2]
[338624852,1726807851878,-500.0,0.00016712,2]
[338624853,1726807851887,-500.0,0.00016712,2]
[338624854,1726807851897,-500.0,0.00016712,2]
[338624855,1726807851907,-577.16,0.00016712,2]
[338624856,1726807851916,-207.78,0.00016712,2]
[338624857,1726807851925,-503.64570474,0.00016712,2]
[338624858,1726807851934,-500.92807811,0.00016712,2]
[338624859,1726807851944,-592.9,0.00016712,2]
[338624860,1726807851953,-500.0,0.00016712,2]
[338624861,1726807851963,-500.0,0.00016712,2]
[338624862,1726807851973,-500.0,0.00016712,2]
[338624863,1726807851982,-500.0,0.00016712,2]
[338624864,1726807851991,-500.0,0.00016712,2]
[338624865,1726807852001,-500.0,0.00016712,2]
[338624866,1726807852011,-629.04,0.00016712,2]
[338624867,1726807852021,-500.0,0.00016712,2]
[338624868,1726807852030,-527.52768385,0.00016712,2]
[338624869,1726807852040,-500.0,0.00016712,2]
[338624870,1726807852054,-500.0,0.00016712,2]
[338624871,1726807852063,-500.0,0.00016712,2]
[338624872,1726807852073,-500.0,0.00016712,2]
[338624873,1726807852082,-500.0,0.00016712,2]
[338624874,1726807852091,-500.0,0.00016712,2]
[338624875,1726807852101,-500.0,0.00016712,2]
[338624876,1726807852111,-500.0,0.00016712,2]
[338624877,1726807852120,-502.96817472,0.00016712,2]
[338624878,1726807852129,-740.89,0.00016712,2]
[338624879,1726807852139,-500.0,0.00016712,2]
[338624880,1726807852148,-500.0,0.00016712,2]
[338624881,1726807852274,-500.0,0.00016712,2]
[338624882,1726807852305,-171.412635,0.00016712,2]
[338624883,1726807852315,-171.412635,0.00016712,2]
[338624884,1726807852324,-171.412635,0.00016712,2]
[338624885,1726807852333,-500.0,0.00016712,2]
[338624886,1726807852342,-171.412635,0.00016712,2]
[338624887,1726807852351,-500.0,0.00016712,2]
[338624888,1726807852361,-171.412635,0.00016712,2]
[338624889,1726807852370,-171.412635,0.00016712,2]
[338624890,1726807852380,-500.0,0.00016712,2]
[338624891,1726807852390,-500.0,0.00016712,2]
[338624892,1726807852399,-500.0,0.00016712,2]
[338624893,1726807852412,-500.0,0.00016712,2]
[338624894,1726807852421,-500.0,0.00016712,2]
[338624895,1726807852431,-500.0,0.00016712,2]
[338624896,1726807852441,-566.17,0.00016712,2]
[338624897,1726807852452,-500.0,0.00016712,2]
[338624898,1726807852462,-500.0,0.00016712,2]
[338624899,1726807852471,-500.0,0.00016712,2]
[338624900,1726807852481,-500.0,0.00016712,2]
[338624901,1726807852491,-500.0,0.00016712,2]
[338624902,1726807852500,-500.0,0.00016712,2]
[338624903,1726807852509,-1137.345721,0.00016712,2]
[338624904,1726807852518,-1137.345721,0.00016712,2]
[338624905,1726807852527,-1137.345721,0.00016712,2]
[338624906,1726807852536,-500.50216523,0.00016712,2]
[338624907,1726807852551,-500.21340804,0.00016712,2]
[338624908,1726807852560,-1137.345721,0.00016712,2]
[338624909,1726807852570,-1137.345721,0.00016712,2]
[338624910,1726807852580,-1137.345721,0.00016712,2]
[338624911,1726807852589,-500.0,0.00016712,2]
[338624912,1726807852598,-1099.49,0.00016712,2]
[338624913,1726807852608,-500.0,0.00016712,2]
[338624914,1726807852617,-500.0,0.00016712,2]
[338624915,1726807852626,-500.0,0.00016712,2]
[338624916,1726807852635,-500.0,0.00016712,2]
[338624917,1726807852644,-526.02,0.00016712,2]
[338624918,1726807852653,-500.0,0.00016712,2]
[338624919,1726807852662,-500.0,0.00016712,2]
[338624920,1726807852671,-501.19425539,0.00016712,2]
[338624921,1726807852681,-308.81050334,0.00016712,2]
[338624922,1726807852690,-557.77,0.00016712,2]
[338624923,1726807852699,-500.0,0.00016712,2]
[338624924,1726807852708,-500.0,0.00016712,2]
[338624925,1726807852717,-67371.52,0.00016712,2]
[338624926,1726807852727,-500.0,0.00016712,2]
[338624927,1726807852736,-500.0,0.00016712,2]
[338624928,1726807852745,-500.0,0.00016712,2]
[338624929,1726807852754,-500.0,0.00016712,2]
[338624930,1726807852763,-500.0,0.00016712,2]
[338624931,1726807852772,-151.0,0.00016729,2]
[338624932,1726807852781,-1154.323209,0.00016729,2]
[338624933,1726807852791,-1154.323209,0.00016729,2]
[338624934,1726807852800,-151.0,0.00016729,2]
[338624935,1726807852809,-151.0,0.00016729,2]
[338624936,1726807852818,-222.200814,0.00016729,2]
[338624937,1726807852827,-222.200814,0.00016729,2]
[338624938,1726807852837,-151.0,0.00016739,2]
[338624939,1726807852846,-312.386417,0.00016739,2]
[338624940,1726807852855,-312.386417,0.00016739,2]
[338624941,1726807852864,-230.43318643,0.00016773,2]
[338624942,1726807852873,-500.0,0.00016773,2]
[338624943,1726807852882,-592.31004817,0.00016773,2]
[338624944,1726807852891,-254.20645201,0.00016773,2]
[338624945,1726807852900,-210.90288632,0.00016773,2]
[338624946,1726807852910,-500.31678291,0.00016773,2]
[338624947,1726807852919,-500.7110209,0.00016773,2]
[338624948,1726807852928,-500.0,0.00016773,2]
[338624949,1726807852937,-386.97029397,0.00016773,2]
[338624950,1726807852947,-500.0,0.00016773,2]
[338624951,1726807852956,-464.83679216,0.00016773,2]
[338624952,1726807852966,-500.0,0.00016773,2]
[338624953,1726807852977,-500.0,0.00016773,2]
[338624954,1726807852987,-500.31720307,0.00016773,2]
[338624955,1726807852997,-500.68586354,0.00016773,2]
[338624956,1726807853007,-500.43915377,0.00016773,2]
[338624957,1726807853018,-500.3104362,0.00016773,2]
[338624958,1726807853029,-500.0,0.00016773,2]
[338624959,1726807853040,-500.0,0.00016773,2]
[338624960,1726807853051,-510.41570084,0.00016773,2]
[338624961,1726807853060,-500.0,0.00016773,2]
[338624962,1726807853070,-500.0,0.00016773,2]
[338624963,1726807853082,-500.0,0.00016773,2]
[338624964,1726807853093,-150.112233,0.000168,2]
[338624965,1726807853104,-150.112233,0.000168,2]
[338624966,1726807853115,-150.112233,0.000168,2]
[338624967,1726807853126,-150.112233,0.000168,2]
[338624968,1726807853137,-500.0,0.00016815,2]
[338624969,1726807853149,-150.112233,0.000169,2]
[338624970,1726807853160,-150.112233,0.000169,2]
[338624971,1726807853169,-150.112233,0.000169,2]
[338624972,1726807853178,-150.112233,0.000169,2]
[338624973,1726807853188,-254.216665,0.00016966,2]
[338624974,1726807853197,-312.386417,0.00016966,2]
[338624975,1726807853207,-312.386417,0.00016966,2]
[338624976,1726807853217,-151.0,0.00016975,2]
[338624977,1726807853227,-1864.674522,0.00016975,2]
[338624978,1726807853237,-1864.674522,0.00016975,2]
[338624979,1726807853247,-1083.548299,0.00016975,2]
[338624980,1726807853257,-1083.548299,0.00016975,2]
[338624981,1726807853266,-345.981531,0.00016975,2]
[338624982,1726807853275,-345.981531,0.00016975,2]
[338624983,1726807853285,-151.0,0.00016975,2]
[338624984,1726807853297,-192.146395,0.00016975,2]
[338624985,1726807853307,-247.859748,0.00016976,2]
[338624986,1726807853319,-247.859748,0.00016976,2]
[338624987,1726807853331,-151.0,0.00016976,2]
[338624988,1726807853341,-151.0,0.00016976,2]
[338624989,1726807853350,-151.0,0.00016986,2]
[338624990,1726807853360,-151.0,0.00016986,2]
[338624991,1726807853369,-279.960979,0.00016986,2]
[338624992,1726807853379,-312.386417,0.00016986,2]
[338624993,1726807853389,-312.386417,0.00016986,2]
[338624994,1726807853399,-500.0,0.00016986,2]
[338624995,1726807853408,-1154.323209,0.00016986,2]
[338624996,1726807853420,-1154.323209,0.00016986,2]
[338624997,1726807853430,-1154.323209,0.00016986,2]
[338624998,1726807853439,-1154.323209,0.00016986,2]
[338624999,1726807853449,-1154.323209,0.00016986,2]
[338625000,1726807853458,-1154.323209,0.00016986,2]
[338625001,1726807853467,-151.0,0.00016986,2]
[338625002,1726807853477,-151.0,0.00016986,2]
[338625003,1726807853486,-151.0,0.00016986,2]
[338625004,1726807853496,-151.0,0.00016986,2]
[338625005,1726807853506,-500.0,0.00016986,2]
[338625006,1726807853515,-222.200814,0.00016986,2]
[338625007,1726807853525,-222.200814,0.00016986,2]
[338625008,1726807853534,-222.200814,0.00016986,2]
[338625009,1726807853544,-500.0,0.00016986,2]
[338625010,1726807853554,-222.200814,0.00016986,2]
[338625011,1726807853564,-500.0,0.00016986,2]
[338625012,1726807853574,-500.0,0.00016986,2]
[338625013,1726807853583,-247.859748,0.00016986,2]
[338625014,1726807853593,-247.859748,0.00016986,2]
[338625015,1726807853603,-247.859748,0.00016986,2]
[338625016,1726807853613,-247.859748,0.00016986,2]
[338625017,1726807853622,-637.53,0.00016986,2]
[338625018,1726807853632,-151.0,0.00016986,2]
[338625019,1726807853642,-151.0,0.00016986,2]
[338625020,1726807853651,-151.0,0.00016986,2]
[338625021,1726807853661,-244.642545,0.00016986,2]
[338625022,1726807853671,-911.2,0.00016986,2]
[338625023,1726807853680,-508.75,0.00016986,2]
[338625024,1726807853690,-268.51315821,0.00016986,2]
[338625025,1726807853699,-620.1,0.00016986,2]
[338625026,1726807853708,-500.0,0.00016986,2]
[338625027,1726807853718,-500.0,0.00016986,2]
[338625028,1726807853729,-500.56276433,0.00016986,2]
[338625029,1726807853740,-505.36893743,0.00016986,2]
[338625030,1726807853752,-500.0,0.00016986,2]
[338625031,1726807853761,-500.0,0.00016986,2]
[338625032,1726807853770,-500.0,0.00016986,2]
[338625033,1726807853779,-500.0,0.00016986,2]
[338625034,1726807853788,-500.0,0.00016986,2]
[338625035,1726807853799,-500.0,0.00016986,2]
[338625036,1726807853808,-355.96,0.00016986,2]
[338625037,1726807853817,-151.0,0.00016986,2]
[338625038,1726807853827,-151.0,0.00016986,2]
[338625039,1726807853837,-500.0,0.00016986,2]
[338625040,1726807853846,-500.0,0.00016986,2]
[338625041,1726807853856,-607.84,0.00016986,2]
[338625042,1726807853865,-500.0,0.00016986,2]
[338625043,1726807853876,-500.0,0.00016986,2]
[338625044,1726807853886,-501.04881337,0.00016986,2]
[338625045,1726807853895,-1864.674522,0.00016986,2]
[338625046,1726807853905,-1864.674522,0.00016986,2]
[338625047,1726807853914,-1864.674522,0.00016986,2]
[338625048,1726807853924,-1864.674522,0.00016986,2]
[338625049,1726807853934,-500.0,0.00016986,2]
[338625050,1726807853943,-500.0,0.00016986,2]
[338625051,1726807853953,-500.0,0.00016986,2]
[338625052,1726807853963,-500.0,0.00016986,2]
[338625053,1726807853973,-500.0,0.00016986,2]
[338625054,1726807853983,-1749.0,0.00016986,2]
[338625055,1726807853992,-500.0,0.00016986,2]
[338625056,1726807854002,-500.0,0.00016986,2]
[338625057,1726807854011,-500.0,0.00016986,2]
[338625058,1726807854020,-574.4,0.00016986,2]
[338625059,1726807854030,-500.0,0.00016986,2]
[338625060,1726807854039,-617.32,0.00016986,2]
[338625061,1726807854050,-344.95,0.00016986,2]
[338625062,1726807854059,-500.0,0.00016986,2]
[338625063,1726807854068,-1083.548299,0.00016986,2]
[338625064,1726807854078,-1083.548299,0.00016986,2]
[338625065,1726807854088,-502.31108353,0.00016986,2]
[338625066,1726807854097,-500.0,0.00016986,2]
[338625067,1726807854107,-1083.548299,0.00016986,2]
[338625068,1726807854117,-501.14344177,0.00016986,2]
[338625069,1726807854126,-1083.548299,0.00016986,2]
[338625070,1726807854136,-584.16866131,0.00016986,2]
[338625071,1726807854145,-500.0,0.00016986,2]
[338625072,1726807854154,-501.4463052,0.00016986,2]
[338625073,1726807854163,-500.0,0.00016986,2]
[338625074,1726807854173,-1129.77,0.00016986,2]
[338625075,1726807854182,-500.0,0.00016986,2]
[338625076,1726807854192,-500.0,0.00016986,2]
[338625077,1726807854201,-500.0,0.00016986,2]
[338625078,1726807854211,-769.29,0.00016986,2]
[338625080,1726807854220,-500.0,0.00016986,2]
[338625081,1726807854230,-501.64735794,0.00016986,2]
[338625082,1726807854240,-975.55,0.00016986,2]
[338625083,1726807854249,-500.0,0.00016986,2]
[338625084,1726807854257,-500.0,0.00016986,2]
[338625085,1726807854267,-500.0,0.00016986,2]
[338625086,1726807854277,-419.21191535,0.00016986,2]
[338625087,1726807854286,-2379.22,0.00016986,2]
[338625088,1726807854297,-500.0,0.00016986,2]
[338625089,1726807854306,-522.01,0.00016986,2]
[338625090,1726807854316,-500.0,0.00016986,2]
[338625091,1726807854325,-500.0,0.00016986,2]
[338625092,1726807854334,-500.0,0.00016986,2]
[338625093,1726807854344,-500.0,0.00016986,2]
[338625094,1726807854354,-500.0,0.00016986,2]
[338625095,1726807854363,-500.0,0.00016986,2]
[338625096,1726807854373,-976.87,0.00016986,2]
[338625097,1726807854382,-501.08490612,0.00016986,2]
[338625098,1726807854392,-500.0,0.00016986,2]
[338625099,1726807854402,-868.22,0.00016986,2]
[338625100,1726807854413,-500.0,0.00016986,2]
[338625101,1726807854424,-500.0,0.00016986,2]
[338625102,1726807854433,-500.0,0.00016986,2]
[338625103,1726807854443,-500.0,0.00016986,2]
[338625104,1726807854453,-500.0,0.00016986,2]
[338625105,1726807854463,-500.0,0.00016986,2]
[338625106,1726807854472,-500.0,0.00016986,2]
[338625107,1726807854481,-14.70432448,0.00016986,2]
[338625110,1726807854859,-25.55517148,0.00016438,2]
[338625111,1726807854871,-125.44482852,0.00016438,2]
[338625112,1726807854880,-151.0,0.00016438,2]
[338625113,1726807854889,-964.24730009,0.00016986,2]
[338625942,1726809031826,-167.127282,0.00015386,2]
[338625944,1726809031837,-167.127282,0.00015453,2]
[338625946,1726809031846,-167.127282,0.0001552,2]
[338625948,1726809031858,-167.127282,0.00015586,2]
[338625950,1726809031868,-167.127282,0.00015653,2]
[338625952,1726809031877,-167.127282,0.0001572,2]
[338625954,1726809031888,-167.127282,0.00015787,2]
[338625956,1726809031899,-167.127282,0.00015854,2]
[338625958,1726809031909,-300.03,0.00015857,2]
[338625960,1726809031923,-390.0,0.00015857,2]
[338625962,1726809031934,-167.127282,0.00015921,2]
[338625964,1726809031945,-306.0,0.00015978,2]
[338625967,1726809031957,-25.78344092,0.00015987,2]
[338625997,1726809037934,-141.34384108,0.00015987,2]
[338625998,1726809037946,-597.12585968,0.00016,2]
[338626000,1726809037958,-402.87414032,0.00016,2]
[338626001,1726809037967,-167.127282,0.00016054,2]
[338626002,1726809037976,-167.127282,0.00016121,2]
[338626003,1726809037985,-153.0,0.00016123,2]
[338626004,1726809037994,-153.0,0.00016178,2]
[338626005,1726809038003,-898.85594099,0.00016184,2]
[338626006,1726809038013,-167.127282,0.00016188,2]
[338626007,1726809038022,-306.0,0.00016278,2]
[338626008,1726809038031,-300.0,0.00016436,2]
[338626009,1726809038040,-141.9834457,0.00016436,2]
[338626010,1726809038051,-158.0165543,0.00016436,2]
[338626011,1726809038061,-144.9834457,0.00016437,2]
[338626012,1726809038077,-265.08054806,0.00016437,2]
[338626013,1726809038087,-354.01124947,0.00016437,2]
[338626014,1726809038097,-500.0,0.00016437,2]
[338626015,1726809038106,-500.0,0.00016437,2]
[338626016,1726809038116,-500.0,0.00016437,2]
[338626017,1726809038125,-500.0,0.00016437,2]
[338626018,1726809038134,-500.0,0.00016437,2]
[338626019,1726809038143,-500.0,0.00016437,2]
[338626020,1726809038153,-500.0,0.00016437,2]
[338626021,1726809038162,-500.0,0.00016437,2]
[338626022,1726809038173,-500.0,0.00016437,2]
[338626023,1726809038182,-500.0,0.00016437,2]
[338626024,1726809038191,-500.0,0.00016437,2]
[338626025,1726809038200,-500.0,0.00016437,2]
[338626026,1726809038209,-500.0,0.00016437,2]
[338626027,1726809038219,-500.0,0.00016437,2]
[338626028,1726809038228,-500.0,0.00016437,2]
[338626029,1726809038237,-500.0,0.00016437,2]
[338626030,1726809038246,-500.0,0.00016437,2]
[338626031,1726809038255,-500.0,0.00016437,2]
[338626032,1726809038264,-500.0,0.00016437,2]
[338626033,1726809038274,-280.04418291,0.00016437,2]
[338626034,1726809038283,-500.0,0.00016437,2]
[338626035,1726809038292,-500.0,0.00016437,2]
[338626036,1726809038301,-500.0,0.00016437,2]
[338626037,1726809038310,-500.0,0.00016437,2]
[338626038,1726809038319,-500.0,0.00016437,2]
[338626039,1726809038330,-500.0,0.00016437,2]
[338626040,1726809038338,-450.64130852,0.00016437,2]
[338626041,1726809038348,-500.0,0.00016438,2]
[338626042,1726809038357,-500.0,0.00016438,2]
[338626043,1726809038367,-630.52,0.00016438,2]
[338626044,1726809038376,-500.0,0.00016438,2]
[338626045,1726809038386,-565.88,0.00016438,2]
[338626046,1726809038395,-500.0,0.00016438,2]
[338626047,1726809038407,-154.3442561,0.00016438,2]
[338626048,1726809038416,-500.0,0.00016438,2]
[338626049,1726809038436,-500.0,0.00016438,2]
[338626050,1726809038445,-134.68228196,0.00016438,2]
[338626055,1726809039904,-365.31771804,0.00016438,2]
[338626056,1726809039914,-500.0,0.00016438,2]
[338626057,1726809039924,-500.0,0.00016438,2]
[338626058,1726809039934,-500.0,0.00016438,2]
[338626059,1726809039944,-500.0,0.00016438,2]
[338626060,1726809039953,-500.0,0.00016438,2]
[338626061,1726809039962,-502.31108353,0.00016438,2]
[338626062,1726809039975,-501.14344177,0.00016438,2]
[338626063,1726809039985,-500.0,0.00016438,2]
[338626064,1726809039994,-500.0,0.00016438,2]
[338626065,1726809040004,-584.16866131,0.00016438,2]
[338626066,1726809040013,-501.4463052,0.00016438,2]
[338626067,1726809040022,-500.0,0.00016438,2]
[338626068,1726809040031,-500.0,0.00016438,2]
[338626069,1726809040041,-500.0,0.00016438,2]
[338626070,1726809040050,-500.0,0.00016438,2]
[338626071,1726809040059,-705.18,0.00016438,2]
[338626072,1726809040069,-500.0,0.00016438,2]
[338626073,1726809040077,-500.0,0.00016438,2]
[338626074,1726809040086,-500.0,0.00016438,2]
[338626075,1726809040095,-500.0,0.00016438,2]
[338626076,1726809040115,-500.0,0.00016438,2]
[338626077,1726809040125,-500.0,0.00016438,2]
[338626078,1726809040135,-500.0,0.00016438,2]
[338626079,1726809040144,-500.0,0.00016438,2]
[338626080,1726809040154,-500.0,0.00016438,2]
[338626081,1726809040164,-500.0,0.00016438,2]
[338626082,1726809040174,-501.64735794,0.00016438,2]
[338626083,1726809040183,-500.0,0.00016438,2]
[338626084,1726809040192,-500.26450851,0.00016438,2]
[338626085,1726809040202,-894.26,0.00016438,2]
[338626086,1726809040212,-500.0,0.00016438,2]
[338626087,1726809040222,-500.0,0.00016438,2]
[338626088,1726809040231,-500.5054268,0.00016438,2]
[338626089,1726809040460,-501.59636202,0.00016438,2]
[338626090,1726809040471,-500.0,0.00016438,2]
[338626091,1726809040479,-895.46,0.00016438,2]
[338626092,1726809040489,-500.0,0.00016438,2]
[338626093,1726809040498,-795.87,0.00016438,2]
[338626094,1726809040508,-500.0,0.00016438,2]
[338626095,1726809040517,-500.0,0.00016438,2]
[338626096,1726809040526,-1123.54,0.00016438,2]
[338626097,1726809040535,-777.39,0.00016438,2]
[338626098,1726809040544,-598.98,0.00016438,2]
[338626099,1726809040554,-500.0,0.00016438,2]
[338626100,1726809040563,-500.0,0.00016438,2]
[338626101,1726809040572,-859.1,0.00016438,2]
[338626102,1726809040582,-500.0,0.00016438,2]
[338626103,1726809040591,-500.0,0.00016438,2]
[338626104,1726809040600,-617.8434881,0.00016438,2]
[338626105,1726809040610,-500.0,0.00016438,2]
[338626106,1726809040619,-500.0,0.00016438,2]
[338626107,1726809040628,-500.0,0.00016438,2]
[338626108,1726809040637,-500.0,0.00016438,2]
[338626109,1726809040650,-500.0,0.00016438,2]
[338626110,1726809040660,-500.0,0.00016438,2]
[338626111,1726809040669,-197.15480101,0.00016438,2]
[338626112,1726809040681,-814.89,0.00016438,2]
[338626113,1726809040690,-778.7,0.00016438,2]
[338626114,1726809040700,-500.0,0.00016438,2]
[338626115,1726809040710,-500.0,0.00016438,2]
[338626116,1726809040720,-576.35,0.00016438,2]
[338626117,1726809040730,-994.01,0.00016438,2]
[338626118,1726809040739,-500.0,0.00016438,2]
[338626119,1726809040749,-500.0,0.00016438,2]
[338626120,1726809040758,-500.0,0.00016438,2]
[338626121,1726809040767,-501.69,0.00016438,2]
[338626122,1726809040777,-1197.96,0.00016438,2]
[338626123,1726809040786,-500.0,0.00016438,2]
[338626124,1726809040796,-3116.15,0.00016438,2]
[338626125,1726809040805,-500.0,0.00016438,2]
[338626126,1726809040815,-500.0,0.00016438,2]
[338626127,1726809040824,-500.0,0.00016438,2]
[338626128,1726809040834,-500.0,0.00016438,2]
[338626129,1726809040844,-500.0,0.00016438,2]
[338626130,1726809040854,-500.0,0.00016438,2]
[338626131,1726809040863,-500.0,0.00016438,2]
[338626132,1726809040873,-721.41,0.00016438,2]
[338626133,1726809040882,-1175.67,0.00016438,2]
[338626134,1726809040892,-500.0,0.00016438,2]
[338626135,1726809040904,-500.0,0.00016438,2]
[338626136,1726809040914,-500.0,0.00016438,2]
[338626137,1726809040924,-500.0,0.00016438,2]
[338626138,1726809040933,-448.26692481,0.00016438,2]
[338626139,1726809040944,-500.0,0.00016438,2]
[338626140,1726809040953,-500.0,0.00016438,2]
[338626141,1726809040962,-500.0,0.00016438,2]
[338626142,1726809040972,-500.0,0.00016438,2]
[338626143,1726809040982,-500.0,0.00016438,2]
[338626144,1726809040992,-500.0,0.00016438,2]
[338626145,1726809041001,-750.09,0.00016438,2]
[338626146,1726809041010,-590.35,0.00016438,2]
[338626147,1726809041020,-512.11952038,0.00016438,2]
[338626148,1726809041030,-500.0,0.00016438,2]
[338626149,1726809041039,-500.0,0.00016438,2]
[338626150,1726809041048,-542.53841598,0.00016438,2]
[338626151,1726809041058,-768.38,0.00016438,2]
[338626152,1726809041067,-500.0,0.00016438,2]
[338626153,1726809041077,-500.0,0.00016438,2]
[338626154,1726809041086,-500.0,0.00016438,2]
[338626155,1726809041095,-526.67,0.00016438,2]
[338626156,1726809041109,-1075.24,0.00016438,2]
[338626157,1726809041118,-500.0,0.00016438,2]
[338626158,1726809041128,-500.0,0.00016438,2]
[338626159,1726809041137,-500.0,0.00016438,2]
[338626160,1726809041146,-560.58,0.00016438,2]
[338626161,1726809041156,-500.0,0.00016438,2]
[338626162,1726809041165,-500.0,0.00016438,2]
[338626163,1726809041175,-500.0,0.00016438,2]
[338626164,1726809041184,-526.53,0.00016438,2]
[338626165,1726809041194,-500.0,0.00016438,2]
[338626166,1726809041203,-500.0,0.00016438,2]
[338626167,1726809041212,-522.06795901,0.00016438,2]
[338626168,1726809041222,-831.76,0.00016438,2]
[338626169,1726809041231,-500.0,0.00016438,2]
[338626170,1726809041242,-500.0,0.00016438,2]
[338626171,1726809041252,-500.0,0.00016438,2]
[338626172,1726809041261,-1100.81,0.00016438,2]
[338626173,1726809041271,-500.0,0.00016438,2]
[338626174,1726809041281,-500.0,0.00016438,2]
[338626175,1726809041291,-316.21,0.00016438,2]
[338626176,1726809041300,-500.0,0.00016438,2]
[338626177,1726809041310,-500.0,0.00016438,2]
[338626178,1726809041320,-500.0,0.00016438,2]
[338626179,1726809041330,-500.0,0.00016438,2]
[338626180,1726809041339,-534.53592009,0.00016438,2]
[338626181,1726809041349,-501.38490169,0.00016438,2]
[338626182,1726809041359,-685.79,0.00016438,2]
[338626183,1726809041368,-500.0,0.00016438,2]
[338626184,1726809041378,-500.0,0.00016438,2]
[338626185,1726809041387,-500.0,0.00016438,2]
[338626186,1726809041396,-504.48829786,0.00016438,2]
[338626187,1726809041406,-500.0,0.00016438,2]
[338626188,1726809041415,-597.63,0.00016438,2]
[338626189,1726809041427,-503.8766295,0.00016438,2]
[338626190,1726809041437,-266.03,0.00016438,2]
[338626191,1726809041446,-1120.62,0.00016438,2]
[338626192,1726809041456,-503.45819037,0.00016438,2]
[338626193,1726809041465,-228.19,0.00016438,2]
[338626194,1726809041474,-500.0,0.00016438,2]
[338626195,1726809041484,-500.0,0.00016438,2]
[338626196,1726809041494,-631.29171719,0.00016438,2]
[338626197,1726809041504,-500.0,0.00016438,2]
[338626198,1726809041513,-500.0,0.00016438,2]
[338626199,1726809041522,-2180.95,0.00016438,2]
[338626200,1726809041532,-1165.65,0.00016438,2]
[338626201,1726809041542,-500.0,0.00016438,2]
[338626202,1726809041551,-500.0,0.00016438,2]
[338626203,1726809041561,-500.0,0.00016438,2]
[338626204,1726809041570,-500.0,0.00016438,2]
[338626205,1726809041579,-500.0,0.00016438,2]
[338626206,1726809041589,-500.0,0.00016438,2]
[338626207,1726809041598,-500.0,0.00016438,2]
[338626208,1726809041608,-500.0,0.00016438,2]
[338626209,1726809041618,-500.0,0.00016438,2]
[338626210,1726809041627,-781.19,0.00016438,2]
[338626211,1726809041637,-338.4075647,0.00016438,2]
[338626212,1726809041646,-500.0,0.00016438,2]
[338626213,1726809041655,-419.21191535,0.00016438,2]
[338626214,1726809041665,-500.92807811,0.00016438,2]
[338626215,1726809041678,-545.99,0.00016438,2]
[338626216,1726809041692,-500.0,0.00016438,2]
[338626217,1726809041701,-500.0,0.00016438,2]
[338626218,1726809041711,-500.0,0.00016438,2]
[338626219,1726809041721,-500.0,0.00016438,2]
[338626220,1726809041730,-500.0,0.00016438,2]
[338626221,1726809041740,-500.0,0.00016438,2]
[338626222,1726809041749,-500.0,0.00016438,2]
[338626223,1726809041758,-568.2,0.00016438,2]
[338626224,1726809041768,-500.0,0.00016438,2]
[338626225,1726809041780,-500.0,0.00016438,2]
[338626226,1726809041792,-859.16,0.00016438,2]